fUSD/lending_fUSD_20240211
["ID","MTS","AMOUNT","RATE_DAILY","PERIOD"]
[313741240,1707653442319,-664.18,0.000335,2]
[313741241,1707653442328,-664.18,0.000335,2]
[313741242,1707653442337,-664.18,0.000335,2]
[313741243,1707653442346,-664.18,0.000335,2]
[313741244,1707653442355,-664.18,0.000335,2]
[313741245,1707653442364,-664.18,0.000335,2]
[313741246,1707653442373,-664.18,0.000335,2]
[313741247,1707653442382,-664.18,0.000335,2]
[313741248,1707653442392,-664.18,0.000335,2]
[313741249,1707653442401,-150.0,0.00033598,2]
[313741250,1707653442410,-151.0,0.00033648,4]
[313741251,1707653442420,-47241.01661443,0.000339,2]
[313741252,1707653442428,-151.50624566,0.000339,2]
[313741253,1707653442439,-151.50624563,0.000339,2]
[313741254,1707653442449,-151.50624563,0.000339,2]
[313741255,1707653442459,-151.50624563,0.000339,2]
[313741256,1707653442468,-151.50624563,0.000339,2]
[313741257,1707653442478,-151.50624563,0.000339,2]
[313741258,1707653442487,-151.50624563,0.000339,2]
[313741259,1707653442497,-151.50624563,0.000339,2]
[313741260,1707653442506,-151.50624563,0.000339,2]
[313741261,1707653442515,-151.50624563,0.000339,2]
[313741262,1707653442524,-151.50624563,0.000339,2]
[313741263,1707653442533,-151.50624563,0.000339,2]
[313741264,1707653442543,-151.50624563,0.000339,2]
[313741265,1707653442553,-151.50624563,0.000339,2]
[313741266,1707653442562,-151.50624563,0.000339,2]
[313741267,1707653442572,-151.50624563,0.000339,2]
[313741268,1707653442582,-151.50624563,0.000339,2]
[313741269,1707653442591,-151.50624563,0.000339,2]
[313741270,1707653442601,-151.50624563,0.000339,2]
[313741271,1707653442610,-151.50624563,0.000339,2]
[313741272,1707653442620,-151.50624563,0.000339,2]
[313741273,1707653442630,-151.50624563,0.000339,2]
[313741274,1707653442640,-151.50624563,0.000339,2]
[313741275,1707653442650,-151.50624563,0.000339,2]
[313741276,1707653442667,-151.50624563,0.000339,2]
[313741277,1707653442677,-151.50624563,0.000339,2]
[313741278,1707653442687,-151.50624563,0.000339,2]
[313741279,1707653442696,-151.0,0.000339,7]
[313741280,1707653442706,-242.647217,0.000339,7]
[313741281,1707653442715,-155.0,0.00033974,4]
[313741282,1707653442724,-13248.85594458,0.00033975,4]
[313741283,1707653442734,-368.5962773,0.00033975,4]
[313741284,1707653442744,-248.23589458,0.00033976,4]
[313741286,1707653442753,-7244.0078345,0.00033977,2]
[313741288,1707653442763,-4256.3701345,0.00033977,2]
[313741290,1707653442773,-1268.7324345,0.00033977,2]
[313741291,1707653442782,-671.424942,0.00033977,2]
[313741293,1707653442791,-671.424942,0.00033977,2]
[313741295,1707653442801,-671.424942,0.00033977,2]
[313741296,1707653442810,-5000.0,0.0003398,2]
[313741297,1707653442819,-32003.09,0.0003398,3]
[313741298,1707653442829,-150.0,0.00033999,2]
[313741299,1707653442838,-150.0,0.00033999,2]
[313741300,1707653442848,-150.0,0.00033999,2]
[313741302,1707653442856,-150.0,0.00033999,2]
[313741303,1707653442866,-2006584.47980242,0.00034,3]
[313741304,1707653442875,-767.32331922,0.00034,4]
[313741305,1707653442884,-8462.72074892,0.00034,7]
[313741306,1707653442894,-80000.0,0.00034,5]
[313741307,1707653442903,-151.0,0.00034,7]
[313741308,1707653442912,-151.0,0.00034,7]
[313741309,1707653442921,-150.0,0.00034175,2]
[313741310,1707653442930,-223.6,0.00034233,2]
[313741311,1707653442939,-10231.6455344,0.00034241,2]
[313741312,1707653442948,-671.424942,0.00034241,2]
[313741313,1707653442958,-50000.0,0.00034265,10]
[313741314,1707653442967,-5279.2304064,0.00034265,10]
[313741315,1707653442976,-10501.16935425,0.00034265,10]
[313741316,1707653442985,-50000.0,0.00034265,10]
[313741317,1707653442995,-10485.75365005,0.00034265,10]
[313741318,1707653443004,-151.50624563,0.00034305,2]
[313741319,1707653443014,-151.0,0.00034334,2]
[313741320,1707653443023,-5845.40437874,0.00034366,10]
[313741321,1707653443033,-705.90055396,0.0003447,2]
[313741322,1707653443042,-2847.282407,0.000345,2]
[313741323,1707653443052,-450.490082,0.000345,2]
[313741324,1707653443061,-772.268713,0.000345,2]
[313741325,1707653443070,-9995.24975099,0.000345,7]
[313741326,1707653443079,-204.0,0.00034519,13]
[313741327,1707653443089,-13900.83874,0.0003452,2]
[313741328,1707653443098,-5860.440215,0.0003452,2]
[313741329,1707653443108,-637.263161,0.0003452,2]
[313741330,1707653443117,-2120.921221,0.0003452,2]
[313741331,1707653443127,-22441.084225,0.0003452,2]
[313741332,1707653443136,-10000.0,0.00034521,2]
[313741333,1707653443145,-818.72184633,0.00034547,4]
[313741334,1707653443154,-284.20923489,0.00034548,4]
[313741335,1707653443163,-581.49674171,0.00034548,4]
[313741336,1707653443173,-9871.34779054,0.00034573,10]
[313741337,1707653443182,-500.0,0.0003462,2]
[313741338,1707653443191,-200.0,0.0003462,2]
[313741339,1707653443200,-500.0,0.00034621,2]
[313741340,1707653443209,-500.0,0.00034621,2]
[313741341,1707653443218,-200.0,0.00034621,2]
[313741342,1707653443228,-800.0,0.00034621,2]
[313741343,1707653443237,-150.0,0.00034642,2]
[313741345,1707653443245,-150.0,0.00034671,2]
[313741347,1707653443255,-150.0,0.00034686,2]
[313741348,1707653443264,-150.0,0.00034693,2]
[313741349,1707653443273,-150.0,0.0003472,2]
[313741350,1707653443282,-1000.0,0.00034726,2]
[313741351,1707653443291,-1000.0,0.00034726,2]
[313741352,1707653443300,-1000.0,0.00034726,2]
[313741354,1707653443309,-1000.0,0.00034726,2]
[313741356,1707653443318,-1000.0,0.00034726,2]
[313741358,1707653443327,-193.5655,0.00034726,2]
[313741360,1707653443337,-150.0,0.00034727,2]
[313741362,1707653443345,-151.50624563,0.00034727,2]
[313741363,1707653443355,-150.0,0.00034751,2]
[313741365,1707653443364,-150.0,0.00034753,2]
[313741366,1707653443373,-150.0,0.00034758,2]
[313741367,1707653443382,-150.0,0.00034758,2]
[313741368,1707653443391,-150.0,0.00034777,2]
[313741369,1707653443400,-150.0,0.00034789,2]
[313741370,1707653443409,-20851.258111,0.00034794,2]
[313741371,1707653443418,-8790.660323,0.00034794,2]
[313741372,1707653443427,-955.894742,0.00034794,2]
[313741373,1707653443436,-3181.381832,0.00034794,2]
[313741374,1707653443446,-33661.626338,0.00034794,2]
[313741375,1707653443455,-8149.497646,0.000348,2]
[313741376,1707653443465,-4270.923611,0.000348,2]
[313741377,1707653443473,-675.735124,0.000348,2]
[313741378,1707653443482,-1158.403069,0.000348,2]
[313741379,1707653443491,-150.0,0.00034805,2]
[313741380,1707653443501,-150.0,0.00034827,2]
[313741381,1707653443510,-251.82269168,0.00034829,10]
[313741382,1707653443520,-150.0,0.00034834,2]
[313741383,1707653443532,-204792.95329808,0.00034843,10]
[313741384,1707653443542,-1527.52918344,0.00034844,10]
[313741385,1707653443552,-25688.6678686,0.00034845,10]
[313741386,1707653443561,-363.22668098,0.00034852,10]
[313741387,1707653443571,-13219.2832344,0.00034859,2]
[313741388,1707653443581,-671.424942,0.00034859,2]
[313741389,1707653443594,-150.0,0.00034859,2]
[313741390,1707653443604,-363.22668098,0.00034862,10]
[313741391,1707653443614,-150.0,0.00034867,2]
[313741392,1707653443623,-251.82269168,0.00034867,10]
[313741393,1707653443633,-400.0,0.0003487,2]
[313741394,1707653443642,-79535.27101199,0.00034872,10]
[313741395,1707653443652,-150.0,0.00034878,2]
[313741396,1707653443664,-150.0,0.0003488,2]
[313741397,1707653443674,-150.0,0.00034882,2]
[313741398,1707653443684,-150.0,0.00034882,2]
[313741399,1707653443695,-79535.27101199,0.00034883,10]
[313741400,1707653443705,-151.0,0.00034883,7]
[313741401,1707653443715,-10000.0,0.0003489,30]
[313741402,1707653443724,-150.0,0.00034892,2]
[313741403,1707653443735,-2000.0,0.00034895,2]
[313741404,1707653443746,-159.13404187,0.00034895,4]
[313741405,1707653443756,-419.8344689,0.00034895,2]
[313741406,1707653443766,-839.6689381,0.00034895,2]
[313741407,1707653443776,-615.2421965,0.00034895,2]
[313741408,1707653443786,-16206.9209343,0.00034895,2]
[313741409,1707653443796,-671.424942,0.00034895,2]
[313741410,1707653443806,-115213.4797855,0.00034895,2]
[313741411,1707653443815,-910.50079798,0.00034897,4]
[313741412,1707653443825,-295.50469259,0.00034897,4]
[313741413,1707653443835,-560.07302293,0.00034898,4]
[313741414,1707653443844,-1377.92965017,0.00034898,4]
[313741415,1707653443853,-212.47623472,0.00034898,2]
[313741416,1707653443863,-155.0,0.00034898,4]
[313741417,1707653443872,-156.54342645,0.00034898,4]
[313741418,1707653443882,-4509.63271863,0.00034898,4]
[313741419,1707653443892,-151.5005338,0.00034899,2]
[313741420,1707653443901,-3313.68237718,0.00034899,2]
[313741421,1707653443911,-128829.88064394,0.000349,2]
[313741422,1707653443920,-200.0,0.000349,2]
[313741423,1707653443929,-9016.43971074,0.000349,4]
[313741424,1707653443939,-6539.08069997,0.000349,4]
[313741425,1707653443949,-1586.71549892,0.000349,4]
[313741426,1707653443958,-992.81037315,0.000349,2]
[313741427,1707653443967,-8066.51192583,0.000349,2]
[313741428,1707653443976,-688.64641517,0.000349,2]
[313741429,1707653443986,-1057.14,0.000349,3]
[313741430,1707653443995,-14894.84408789,0.000349,2]
[313741431,1707653444005,-200.0,0.000349,8]
[313741432,1707653444014,-237.924209,0.000349,2]
[313741433,1707653444024,-1986.607498,0.000349,2]
[313741434,1707653444032,-2856.63251528,0.000349,2]
[313741435,1707653444042,-2856.63251527,0.000349,2]
[313741436,1707653444051,-2856.63251527,0.000349,2]
[313741437,1707653444061,-2856.63251527,0.000349,2]
[313741438,1707653444070,-2856.63251527,0.000349,2]
[313741439,1707653444079,-2856.63251527,0.000349,2]
[313741440,1707653444089,-2856.63251527,0.000349,2]
[313741441,1707653444098,-2856.63251527,0.000349,2]
[313741442,1707653444108,-2008.26,0.000349,2]
[313741443,1707653444117,-100224.8435489,0.00034908,2]
[313741444,1707653444126,-3574.09929478,0.00034908,10]
[313741445,1707653444135,-3574.09929478,0.00034912,10]
[313741446,1707653444145,-204792.95329808,0.00034914,10]
[313741447,1707653444155,-25688.6678686,0.00034915,10]
[313741448,1707653444165,-1527.52918344,0.00034919,10]
[313741449,1707653444175,-4017.760979,0.00034931,2]
[313741450,1707653444184,-3113.707594,0.00034931,2]
[313741451,1707653444193,-626.5172,0.00034931,2]
[313741452,1707653444203,-27801.677481,0.00034931,2]
[313741453,1707653444212,-11720.880431,0.00034931,2]
[313741454,1707653444221,-1274.526323,0.00034931,2]
[313741455,1707653444231,-4241.842442,0.00034931,2]
[313741456,1707653444240,-44882.16845,0.00034931,2]
[313741457,1707653444250,-75000.0,0.00034932,15]
[313741458,1707653444259,-85236.2073123,0.00034976,2]
[313741459,1707653444268,-70247.5710757,0.00034976,2]
[313741460,1707653444279,-55258.9348391,0.00034976,2]
[313741461,1707653444288,-40270.2986025,0.00034976,2]
[313741462,1707653444297,-1745.35629888,0.0003499,2]
[313741463,1707653444308,-150.0,0.00034999,2]
[313741464,1707653444316,-150.0,0.00034999,2]
[313741465,1707653444325,-50000.0,0.00035,5]
[313741466,1707653444335,-40619.78301103,0.00035,4]
[313741467,1707653444344,-155.0,0.00035,2]
[313741468,1707653444353,-450.97816962,0.00035,4]
[313741469,1707653444362,-1260.43774001,0.00035,30]
[313741470,1707653444371,-300.0,0.00035,36]
[313741471,1707653444380,-165.0,0.00035,2]
[313741472,1707653444390,-1021.0,0.00035,5]
[313741473,1707653444398,-1022.0,0.00035,5]
[313741474,1707653444408,-15308.9474875,0.00035,7]
[313741475,1707653444417,-1175.91239717,0.00035,4]
[313741476,1707653444427,-12587.0,0.00035,2]
[313741477,1707653444437,-1461.32390454,0.00035,4]
[313741478,1707653444447,-350.68310121,0.00035,3]
[313741479,1707653444456,-124942.0,0.00035,2]
[313741480,1707653444466,-58000.0,0.00035,3]
[313741481,1707653444477,-150.0,0.00035,30]
[313741482,1707653444486,-287.91796984,0.00035,3]
[313741483,1707653444495,-5694.564815,0.00035,2]
[313741484,1707653444507,-900.980165,0.00035,2]
[313741485,1707653444516,-1544.537426,0.00035,2]
[313741486,1707653444526,-1512.36148787,0.00035,2]
[313741487,1707653444535,-1205.56585626,0.00035,2]
[313741488,1707653444545,-1500.0,0.00035,3]
[313741489,1707653444556,-164.66779036,0.00035,2]
[313741490,1707653444565,-2500.0,0.00035,2]
[313741491,1707653444575,-151.0,0.00035,7]
[313741492,1707653444584,-27712.61787937,0.00035,2]
[313741493,1707653444594,-27712.61787937,0.00035,2]
[313741494,1707653444604,-27712.61787937,0.00035,2]
[313741495,1707653444614,-27712.61787937,0.00035,2]
[313741496,1707653444624,-2012.1153556,0.00035,3]
[313741497,1707653444634,-13090.0,0.00035,4]
[313741498,1707653444644,-10000.0,0.00035,5]
[313741499,1707653444654,-10000.0,0.00035,5]
[313741500,1707653444665,-5022.201224,0.00035068,2]
[313741501,1707653444675,-3892.134492,0.00035068,2]
[313741502,1707653444684,-783.1465,0.00035068,2]
[313741503,1707653444694,-34752.096851,0.00035068,2]
[313741504,1707653444705,-14651.100539,0.00035068,2]
[313741505,1707653444714,-1593.157904,0.00035068,2]
[313741506,1707653444724,-5302.303053,0.00035068,2]
[313741507,1707653444735,-56102.710563,0.00035068,2]
[313741508,1707653444744,-400.0,0.0003507,2]
[313741509,1707653444754,-155.0,0.000351,4]
[313741510,1707653444763,-237.924209,0.000351,2]
[313741511,1707653444773,-1986.607498,0.000351,2]
[313741512,1707653444782,-151.50624563,0.0003515,2]
[313741513,1707653444792,-237.92421,0.000352,2]
[313741514,1707653444801,-150.0,0.000352,24]
[313741515,1707653444810,-1986.607497,0.000352,2]
[313741516,1707653444819,-400.0,0.0003527,2]
[313741517,1707653444828,-319141.819963,0.00035281,7]
[313741518,1707653444839,-769.26521837,0.00035281,7]
[313741519,1707653444849,-3155.92428465,0.00035281,7]
[313741520,1707653444859,-20797.2527012,0.00035281,7]
[313741521,1707653444868,-3439.18516105,0.00035281,7]
[313741522,1707653444878,-2306.33474975,0.00035281,7]
[313741523,1707653444888,-155.06017714,0.00035281,2]
[313741524,1707653444898,-288.37487269,0.00035281,4]
[313741525,1707653444908,-675.78660902,0.00035281,6]
[313741526,1707653444917,-151.0,0.00035281,7]
[313741527,1707653444926,-1000.0,0.000353,2]
[313741528,1707653444936,-664.18,0.000353,3]
[313741529,1707653444945,-664.18,0.000353,3]
[313741530,1707653444955,-664.18,0.000353,3]
[313741531,1707653444966,-664.18,0.000353,3]
[313741532,1707653444975,-664.18,0.000353,3]
[313741533,1707653444984,-664.18,0.000353,3]
[313741534,1707653444993,-664.18,0.000353,3]
[313741535,1707653445003,-664.18,0.000353,3]
[313741536,1707653445012,-664.18,0.000353,3]
[313741537,1707653445021,-664.18,0.000353,3]
[313741538,1707653445030,-664.18,0.000353,3]
[313741539,1707653445040,-664.18,0.000353,3]
[313741540,1707653445049,-664.18,0.000353,3]
[313741541,1707653445058,-664.18,0.000353,3]
[313741542,1707653445067,-664.18,0.000353,3]
[313741543,1707653445077,-664.18,0.000353,3]
[313741544,1707653445086,-664.18,0.000353,3]
[313741545,1707653445094,-664.18,0.000353,3]
[313741546,1707653445104,-664.18,0.000353,3]
[313741547,1707653445114,-664.18,0.000353,3]
[313741548,1707653445122,-150.0,0.00035328,2]
[313741549,1707653445131,-2108.79375,0.00035342,2]
[313741550,1707653445141,-1093.909687,0.00035342,2]
[313741551,1707653445150,-7031.081713,0.00035342,2]
[313741552,1707653445160,-5448.98829,0.00035342,2]
[313741553,1707653445170,-1096.4051,0.00035342,2]
[313741554,1707653445180,-48652.935592,0.00035342,2]
[313741555,1707653445190,-20511.540755,0.00035342,2]
[313741556,1707653445198,-2230.421066,0.00035342,2]
[313741557,1707653445208,-7423.224275,0.00035342,2]
[313741558,1707653445217,-78543.794788,0.00035342,2]
[313741559,1707653445226,-17502.0,0.000354,3]
[313741560,1707653445238,-200.0,0.000354,9]
[313741561,1707653445248,-5200.0,0.000355,15]
[313741562,1707653445257,-150.0,0.000355,35]
[313741563,1707653445267,-189.73085466,0.000355,30]
[313741564,1707653445277,-782.70808294,0.000355,2]
[313741565,1707653445286,-500.0,0.00035508,5]
[313741566,1707653445295,-548.0,0.00035508,5]
[313741567,1707653445305,-2856.63251527,0.00035532,2]
[313741568,1707653445314,-151.50624563,0.00035572,2]
[313741569,1707653445518,-3000.0,0.000356,2]
[313741570,1707653445528,-7118.206018,0.000356,2]
[313741571,1707653445538,-1126.225206,0.000356,2]
[313741572,1707653445547,-1930.671783,0.000356,2]
[313741573,1707653445558,-5915.68,0.00035606,10]
[313741574,1707653445567,-500.0,0.00035616,4]
[313741575,1707653445577,-1000.0,0.00035616,7]
[313741576,1707653445586,-1000.0,0.00035616,7]
[313741577,1707653445596,-1000.0,0.00035616,7]
[313741578,1707653445605,-1000.0,0.00035616,7]
[313741579,1707653445614,-770.0,0.00035616,7]
[313741580,1707653445624,-9259.75,0.00035616,2]
[313741582,1707653445634,-1000.0,0.00035616,7]
[313741584,1707653445643,-1000.0,0.00035616,7]
[313741585,1707653445657,-1000.0,0.00035616,7]
[313741586,1707653445670,-1000.0,0.00035616,7]
[313741587,1707653445679,-1000.0,0.00035616,7]
[313741589,1707653445688,-1000.0,0.00035616,7]
[313741590,1707653445698,-1000.0,0.00035616,7]
[313741592,1707653445707,-1000.0,0.00035616,7]
[313741593,1707653445716,-1000.0,0.00035616,7]
[313741594,1707653445726,-1000.0,0.00035616,7]
[313741595,1707653445736,-1000.0,0.00035616,7]
[313741596,1707653445745,-1000.0,0.00035616,7]
[313741597,1707653445755,-1000.0,0.00035616,7]
[313741598,1707653445765,-1000.0,0.00035616,7]
[313741600,1707653445775,-1000.0,0.00035616,7]
[313741601,1707653445785,-1000.0,0.00035616,7]
[313741602,1707653445794,-1000.0,0.00035616,7]
[313741603,1707653445804,-1000.0,0.00035616,7]
[313741604,1707653445814,-1000.0,0.00035616,7]
[313741605,1707653445823,-1000.0,0.00035616,7]
[313741606,1707653445833,-1000.0,0.00035616,7]
[313741607,1707653445842,-1055.0,0.00035616,7]
[313741608,1707653445852,-1000.0,0.00035616,7]
[313741609,1707653445863,-1000.0,0.00035616,7]
[313741610,1707653445873,-1000.0,0.00035616,7]
[313741611,1707653445882,-1000.0,0.00035616,7]
[313741612,1707653445892,-152.0,0.0003569,4]
[313741613,1707653445903,-17502.0,0.000357,5]
[313741614,1707653445914,-240.78696695,0.000357,2]
[313741615,1707653445924,-150.0,0.000357,24]
[313741616,1707653445934,-2008.26,0.0003575,2]
[313741617,1707653445943,-160.0,0.00035782,2]
[313741618,1707653445953,-10000.0,0.00035798,2]
[313741619,1707653445963,-262.36,0.000358,20]
[313741620,1707653445974,-200.0,0.000359,9]
[313741621,1707653445984,-150.0,0.00035905,2]
[313741622,1707653445994,-152.83991866,0.00035909,2]
[313741623,1707653446003,-441.0,0.00035925,2]
[313741624,1707653446014,-1311.0,0.0003598,120]
[313741625,1707653446023,-151.50624563,0.00035994,2]
[313741626,1707653446033,-150.0,0.00035999,2]
[313741627,1707653446043,-150.0,0.00035999,2]
[313741628,1707653446053,-50000.0,0.00036,6]
[313741629,1707653446062,-150.0,0.00036,40]
[313741630,1707653446072,-299.82335503,0.00036,4]
[313741631,1707653446082,-300.0,0.00036,37]
[313741632,1707653446091,-588064.49976824,0.00036,30]
[313741633,1707653446101,-72952.69757777,0.00036,30]
[313741634,1707653446110,-12587.0,0.00036,2]
[313741635,1707653446120,-9965.488426,0.00036,2]
[313741636,1707653446129,-1576.715289,0.00036,2]
[313741637,1707653446138,-2702.940496,0.00036,2]
[313741638,1707653446147,-6190.29319546,0.00036,2]
[313741639,1707653446156,-151.0,0.00036,7]
[313741640,1707653446165,-500.0,0.00036027,6]
[313741641,1707653446175,-1220.95629857,0.00036052,10]
[313741642,1707653446184,-4765.59545548,0.00036067,2]
[313741643,1707653446193,-453.0,0.00036121,2]
[313741644,1707653446202,-914.17,0.00036142,2]
[313741645,1707653446211,-434.24,0.00036142,2]
[313741646,1707653446221,-914.17,0.00036142,2]
[313741647,1707653446230,-404.72,0.00036142,2]
[313741648,1707653446240,-914.17,0.00036142,2]
[313741649,1707653446249,-404.72,0.00036142,2]
[313741650,1707653446259,-404.72,0.00036142,2]
[313741651,1707653446269,-914.17,0.00036142,2]
[313741652,1707653446279,-914.17,0.00036142,2]
[313741653,1707653446289,-404.72,0.00036142,2]
[313741655,1707653446298,-1878.36,0.00036142,2]
[313741656,1707653446309,-404.72,0.00036142,2]
[313741657,1707653446318,-404.72,0.00036142,2]
[313741658,1707653446327,-404.72,0.00036142,2]
[313741659,1707653446337,-404.72,0.00036142,2]
[313741660,1707653446346,-5000.0,0.0003618,23]
[313741661,1707653446355,-150.0,0.000362,25]
[313741662,1707653446365,-1000.0,0.00036263,2]
[313741663,1707653446375,-5000.0,0.0003628,24]
[313741664,1707653446384,-2109.51191883,0.00036301,30]
[313741665,1707653446394,-5245.57393801,0.00036318,2]
[313741666,1707653446403,-190.0,0.000364,7]
[313741667,1707653446413,-200.0,0.000364,10]
[313741668,1707653446423,-203.53500204,0.000364,2]
[313741669,1707653446433,-151.50624563,0.00036417,2]
[313741670,1707653446442,-500.0,0.00036438,8]
[313741671,1707653446452,-196.76,0.00036438,2]
[313741672,1707653446461,-5000.0,0.0003648,25]
[313741673,1707653446471,-150.0,0.00036482,2]
[313741674,1707653446481,-223.6,0.00036497,2]
[313741675,1707653446491,-5200.0,0.000365,20]
[313741676,1707653446502,-10000.0,0.000365,8]
[313741677,1707653446512,-10000.0,0.000365,8]
[313741678,1707653446521,-150.0,0.000365,45]
[313741679,1707653446531,-2008.26,0.000366,2]
[313741680,1707653446541,-339.71144682,0.0003668,30]
[313741681,1707653446550,-150.0,0.000367,26]
[313741682,1707653446560,-151.50624563,0.00036839,2]
[313741683,1707653446570,-500.0,0.00036849,10]
[313741684,1707653446579,-5000.0,0.0003688,26]
[313741685,1707653446590,-150.0,0.00036888,2]
[313741686,1707653446599,-150.0,0.00036888,2]
[313741687,1707653446608,-27712.61787937,0.00036889,2]
[313741688,1707653446618,-373651.4516041,0.00036889,4]
[313741689,1707653447107,-16203.88710778,0.00036889,4]
[313741690,1707653447939,-150.0,0.00034686,2]
[313741691,1707653447948,-150.0,0.00034785,2]
[313741692,1707653447957,-5269.60492852,0.00036889,4]
[313741693,1707653447976,-326.63804592,0.00036889,4]
[313741694,1707653447988,-954.05,0.00036889,4]
[313741695,1707653448009,-29786.8285291,0.00036889,4]
[313741696,1707653448240,-371.22485781,0.00036889,4]
[313741697,1707653448252,-334457.95511282,0.00036889,4]
[313741698,1707653448627,-500.0,0.00022779,2]
[313741699,1707653448637,-500.0,0.00022779,2]
[313741700,1707653448646,-500.0,0.00022779,2]
[313741701,1707653448656,-500.0,0.00022779,2]
[313741702,1707653448669,-622.50085851,0.00022779,2]
[313741703,1707653448678,-500.0,0.00022779,2]
[313741704,1707653448688,-156.03689591,0.00022998,2]
[313741705,1707653448699,-1570.16224558,0.00036889,4]
[313741706,1707653448735,-6200.26363167,0.00036889,4]
[313741707,1707653449337,-156.09398112,0.00022778,2]
[313741708,1707653449348,-301.86774059,0.00022998,2]
[313741709,1707653449358,-998.43183121,0.00022998,2]
[313741710,1707653449370,-37971.96204685,0.00036889,4]
[313741711,1707653449403,-45563.22193084,0.00036889,4]
[313741712,1707653449415,-791.65526421,0.00036889,4]
[313741713,1707653449433,-1632.92754161,0.00036889,4]
[313741714,1707653449444,-680.22227264,0.00036889,4]
[313741715,1707653449456,-60456.75131282,0.00036889,4]
[313741716,1707653449468,-7563.25361897,0.00036889,4]
[313741717,1707653465498,595.89606313,0.00022339,2]
[313741720,1707653881682,288.37487269,0.00022339,2]
[313741721,1707654000591,250.0,0.00022382,2]
[313741722,1707654019521,250.0,0.00022298,2]
[313741723,1707654050884,443.88,0.00022206,2]
[313741724,1707654069308,183.71,0.00022103,2]
[313741725,1707654078722,167.43,0.00020279,2]
[313741726,1707654293754,1919.5,0.00021761,2]
[313741728,1707654390913,500.0,0.00021719,2]
[313741729,1707654434003,1006.43890897,0.00020409,2]
[313741734,1707654507195,510.62,0.00021732,2]
[313741735,1707654510079,250.0,0.00021732,2]
[313741736,1707654520856,526.54171103,0.00022401,2]
[313741737,1707654524942,155.0,0.00022401,2]
[313741741,1707654535612,1262.54567766,0.00022401,2]
[313741742,1707654537478,200.27145272,0.00022401,2]
[313741744,1707654541743,155.0,0.00022401,2]
[313741745,1707654542074,214.96,0.00019877,2]
[313741746,1707654542257,214.96,0.00022141,2]
[313741748,1707654547934,402.68003383,0.00022401,2]
[313741761,1707654552920,246.18989559,0.00022401,2]
[313741766,1707654562215,162.61610114,0.00022401,2]
[313741768,1707654566813,172.75,0.00021815,2]
[313741770,1707654568945,1378.6670059,0.00022401,2]
[313741771,1707654569185,302.84547986,0.00022401,2]
[313741773,1707654571118,303.75186586,0.00022401,2]
[313741774,1707654572585,534.71406869,0.00022401,2]
[313741775,1707654573690,302.84547986,0.00022401,2]
[313741811,1707654634728,-155.0,0.00022404,2]
[313741812,1707654634738,-155.0,0.00022404,2]
[313741813,1707654634747,-156.5113925,0.00022436,2]
[313741814,1707654634757,-1294.94941148,0.00022449,2]
[313741815,1707654634771,-334.84098344,0.00022449,2]
[313741816,1707654634804,-3020.18489428,0.00022449,2]
[313741817,1707654634813,-284.20923489,0.0002245,2]
[313741818,1707654634822,-581.49674171,0.0002245,2]
[313741819,1707654634832,-248.23589458,0.0002245,2]
[313741820,1707654634841,-224.82676454,0.00022538,2]
[313741821,1707654634850,-300.0,0.00022538,2]
[313741822,1707654634859,-150.0,0.00022538,2]
[313741823,1707654634868,-224.82676454,0.00022539,2]
[313741824,1707654634878,-1706.9261,0.00022579,2]
[313741825,1707654634888,-2444.9052,0.0002258,2]